bitfinex/quotes_BTCUSD_20241119
["timestamp","ask_amount","ask_price","bid_price","bid_amount"]
[1732039268495,0.0008555,92781.0,92756.0,0.0462]
[1732039268496,0.0008555,92781.0,92755.0,0.0752]
[1732039268691,0.0008555,92781.0,92753.0,0.107813]
[1732039268692,0.107805,92760.0,92753.0,0.107813]
[1732039268934,0.215577,92774.0,92753.0,0.107813]
[1732039269150,0.215593,92768.0,92754.0,0.107811]
[1732039269371,0.215577,92774.0,92757.0,0.107807]
[1732039269614,0.107801,92764.0,92757.0,0.215615]
[1732039269849,0.10906255,92780.0,92757.0,0.107807]
[1732039270078,0.107801,92763.0,92757.0,0.107807]
[1732039270338,0.215578,92774.0,92759.0,0.107805]
[1732039270564,0.10906255,92780.0,92751.0,0.10906255]
[1732039270789,0.0008555,92781.0,92751.0,0.10906255]
[1732039270790,0.107784,92778.0,92771.0,0.107791]
[1732039271048,0.215563,92780.0,92770.0,0.107792]
[1732039271292,0.0008555,92781.0,92778.0,0.107783]
[1732039271538,0.0008555,92781.0,92780.0,0.107781]
[1732039272173,0.0008555,92781.0,92756.0,0.187108]
[1732039272174,0.12550838,92781.0,92756.0,0.187108]
[1732039272413,0.107787,92776.0,92770.0,0.107793]
[1732039272666,0.0008555,92781.0,92779.0,0.107782]
[1732039272880,0.0008555,92781.0,92780.0,0.107781]
[1732039273523,0.0008555,92781.0,92779.0,0.107782]
[1732039273986,0.0008555,92781.0,92774.0,0.107788]
[1732039274395,0.0008555,92781.0,92779.0,0.107782]
[1732039274613,0.0008555,92781.0,92780.0,0.107781]
[1732039275034,0.215547,92787.0,92777.0,0.107784]
[1732039275512,0.10062231,92789.0,92779.0,0.107782]
[1732039275730,0.10062231,92789.0,92759.0,0.107806]
[1732039275731,0.12465288,92780.0,92761.0,0.107803]
[1732039275942,0.12465288,92780.0,92772.0,0.10779]
[1732039276203,0.12465288,92780.0,92767.0,0.107796]
[1732039276204,0.107776,92785.0,92774.0,0.107787]
[1732039276439,0.04407427,92789.0,92758.0,0.107807]
[1732039276642,0.04407427,92789.0,92785.0,0.107775]
[1732039276855,0.107768,92792.0,92786.0,0.107774]
[1732039277070,0.1,92793.0,92787.0,0.107773]
[1732039277303,0.207767,92793.0,92787.0,0.107773]
[1732039277512,0.1,92793.0,92765.0,0.0492]
[1732039277740,0.2356786,92792.0,92766.0,0.10906255]
[1732039277947,0.2356786,92792.0,92785.0,0.107776]
[1732039277948,0.02014502,92791.0,92785.0,0.107776]
[1732039278157,0.107768,92792.0,92785.0,0.107776]
[1732039278605,0.04473875,92794.0,92767.0,0.0801]
[1732039278829,0.107768,92792.0,92786.0,0.107774]
[1732039279046,0.1,92797.0,92780.0,0.10778]
[1732039279232,0.107772,92789.0,92783.0,0.107777]
[1732039279679,0.215526,92796.0,92768.0,0.10906255]
[1732039279890,0.02014355,92795.0,92768.0,0.10906255]
[1732039280100,0.10777,92790.0,92784.0,0.215552]
[1732039280522,0.1,92797.0,92768.0,0.10906255]
[1732039280724,0.23566883,92796.0,92785.0,0.107775]
[1732039280962,0.107769,92791.0,92785.0,0.107775]
[1732039281442,0.1,92799.0,92762.0,0.12465288]
[1732039281443,0.215519,92799.0,92762.0,0.12465288]
[1732039281740,0.1450048,92800.0,92762.0,0.12465288]
[1732039281741,0.107764,92795.0,92789.0,0.10777]
[1732039281966,0.215524,92797.0,92770.0,0.107793]
[1732039282209,0.107768,92792.0,92787.0,0.107773]
[1732039282716,0.107766,92793.0,92788.0,0.107772]
[1732039282971,0.1,92796.0,92771.0,0.10906255]
[1732039282972,0.207763,92796.0,92790.0,0.107769]
[1732039283215,0.0450048,92800.0,92796.0,0.107762]
[1732039283469,0.0450048,92800.0,92799.0,0.107759]
[1732039284226,0.0450048,92800.0,92799.0,0.21682155]
[1732039284227,0.0008551,92800.0,92799.0,0.21682155]
[1732039284448,0.0008551,92800.0,92799.0,0.107759]
[1732039284688,0.0008551,92800.0,92783.0,0.08]
[1732039284913,0.0008551,92800.0,92763.0,0.0454]
[1732039284914,0.215554,92784.0,92763.0,0.0454]
[1732039285160,0.12465288,92785.0,92755.0,0.04380864]
[1732039285435,0.21906255,92784.0,92750.0,0.0454]
[1732039285676,0.107806,92759.0,92754.0,0.107811]
[1732039285903,0.1,92777.0,92751.0,0.107815]
[1732039285904,0.01,92775.0,92751.0,0.107815]
[1732039286158,0.7233,92777.0,92749.0,0.11077355]
[1732039286376,0.107802,92763.0,92757.0,0.107807]
[1732039286629,0.1078,92764.0,92758.0,0.107806]
[1732039286854,0.107798,92766.0,92761.0,0.107803]
[1732039287308,0.215572,92776.0,92760.0,0.107804]
[1732039287600,0.7233,92777.0,92749.0,0.11077355]
[1732039287601,0.215577,92774.0,92757.0,0.107807]
[1732039287842,0.1078,92764.0,92758.0,0.107807]
[1732039288082,0.6483,92777.0,92757.0,0.107807]
[1732039288318,0.107791,92773.0,92767.0,0.107796]
[1732039288562,0.6483,92777.0,92751.0,0.107815]
[1732039288563,0.5483,92777.0,92751.0,0.107815]
[1732039288780,0.323379,92770.0,92762.0,0.107802]
[1732039288996,0.5483,92777.0,92751.0,0.21687755]
[1732039289408,0.261664,92780.0,92762.0,0.107802]
[1732039289410,0.0461,92780.0,92762.0,0.107802]
[1732039289660,0.15516255,92780.0,92760.0,0.107805]
[1732039289911,0.12465288,92769.0,92749.0,0.001711]
[1732039290164,0.107813,92754.0,92749.0,0.001711]
[1732039290396,0.215593,92767.0,92751.0,0.107814]
[1732039290657,0.12465288,92769.0,92751.0,0.107814]
[1732039290900,0.107808,92757.0,92752.0,0.107814]
[1732039292104,0.10781,92756.0,92751.0,0.107814]
[1732039292571,0.12465288,92769.0,92749.0,0.001711]
[1732039292825,0.107816,92750.0,92749.0,0.001711]
[1732039295059,0.207816,92750.0,92749.0,0.001711]
[1732039295992,0.215598,92765.0,92751.0,0.107815]
[1732039296208,0.5483,92768.0,92761.0,0.107803]
[1732039296209,0.107797,92767.0,92761.0,0.107803]
[1732039296418,0.04265885,92768.0,92753.0,0.01]
[1732039296640,0.04265885,92768.0,92750.0,0.107816]
[1732039296894,0.107798,92766.0,92759.0,0.107805]
[1732039297104,0.215584,92771.0,92752.0,0.01]
[1732039297105,0.12465288,92774.0,92767.0,0.107796]
[1732039297339,0.107796,92768.0,92760.0,0.107805]
[1732039297548,0.107796,92768.0,92762.0,0.107802]
[1732039297980,0.107795,92769.0,92763.0,0.107801]
[1732039298212,0.215599,92765.0,92759.0,0.0017102]
[1732039298417,0.12465288,92774.0,92759.0,0.0017102]
[1732039298628,0.107805,92760.0,92759.0,0.0017102]
[1732039299283,0.29338169,92760.0,92759.0,0.0017102]
[1732039299708,0.107805,92760.0,92759.0,0.0017102]
[1732039301070,0.15073048,92760.0,92759.0,0.0017102]
[1732039302398,0.04292548,92760.0,92759.0,0.0017102]
[1732039302632,0.15073048,92760.0,92759.0,0.0017102]
[1732039302840,0.107805,92760.0,92759.0,0.0017102]
[1732039303487,0.29338169,92760.0,92759.0,0.0017102]
[1732039304277,0.25964323,92762.0,92759.0,0.0017102]
[1732039304278,0.04403623,92762.0,92759.0,0.0017102]
[1732039304475,0.1,92767.0,92759.0,0.0017102]
[1732039304707,0.107805,92760.0,92759.0,0.0017102]
[1732039305351,0.215598,92765.0,92759.0,0.0017102]
[1732039305352,0.107801,92763.0,92759.0,0.0017102]
[1732039305545,0.1,92764.0,92759.0,0.1095162]
[1732039305824,0.1,92764.0,92759.0,0.0017102]
[1732039306185,0.2078,92764.0,92759.0,0.0017102]
[1732039306398,0.1,92764.0,92759.0,0.0017102]
[1732039306546,0.107805,92760.0,92759.0,0.0017102]
[1732039307196,0.1,92764.0,92759.0,0.0017102]
[1732039307417,0.215597,92766.0,92759.0,0.0017102]
[1732039307418,0.107803,92762.0,92759.0,0.0017102]
[1732039307640,0.1,92765.0,92759.0,0.0017102]
[1732039307641,0.107803,92761.0,92759.0,0.0017102]
[1732039308025,0.04417179,92768.0,92760.0,0.107805]
[1732039308245,0.04417179,92768.0,92764.0,0.107799]
[1732039308506,0.107793,92770.0,92764.0,0.215598]
[1732039308700,0.1,92772.0,92764.0,0.107799]
[1732039308921,0.207792,92772.0,92766.0,0.107797]
[1732039309144,0.207792,92772.0,92759.0,0.1095152]
[1732039309145,0.215584,92771.0,92762.0,0.107802]
[1732039309368,0.107795,92769.0,92763.0,0.1078]
[1732039309586,0.1,92772.0,92759.0,0.0017102]
[1732039309842,0.107805,92760.0,92759.0,0.0017102]
[1732039310572,0.39246755,92760.0,92759.0,0.0017102]
[1732039311067,0.207805,92760.0,92759.0,0.0017102]
[1732039311975,0.3595469,92760.0,92759.0,0.0017102]
[1732039312201,0.3582627,92760.0,92759.0,0.0017102]
[1732039313575,0.24920015,92760.0,92759.0,0.0017102]
[1732039317037,0.14920015,92760.0,92759.0,0.0017102]
[1732039317281,0.04267935,92760.0,92759.0,0.0017102]
[1732039317519,0.215599,92765.0,92759.0,0.0017102]
[1732039317975,0.107803,92761.0,92759.0,0.0017102]
[1732039318190,0.107802,92763.0,92759.0,0.0017102]
[1732039318416,0.1078,92764.0,92759.0,0.1095152]
[1732039318671,0.04367818,92765.0,92759.0,0.1095152]
[1732039318920,0.04367818,92765.0,92759.0,0.0017102]
[1732039319183,0.1,92770.0,92759.0,0.0017102]
[1732039319422,0.107797,92767.0,92763.0,0.107801]
[1732039319668,0.107799,92765.0,92760.0,0.107804]
[1732039319904,0.12480279,92769.0,92759.0,0.0017102]
[1732039320117,0.107805,92760.0,92759.0,0.0017102]
[1732039322000,0.207805,92760.0,92759.0,0.0017102]
[1732039322670,0.2086604,92760.0,92759.0,0.0017102]
[1732039324071,0.36204834,92760.0,92759.0,0.0017102]
[1732039324521,0.04518079,92760.0,92759.0,0.1095162]
[1732039324773,0.15298579,92760.0,92759.0,0.0017102]
[1732039324993,0.04518079,92760.0,92759.0,0.0017102]
[1732039325954,0.15298579,92760.0,92759.0,0.0017102]
[1732039326714,0.04518079,92760.0,92759.0,0.0017102]
[1732039326953,0.04518079,92760.0,92759.0,0.1095162]
[1732039327406,0.04518079,92760.0,92759.0,0.0017102]
[1732039328327,0.04518079,92760.0,92759.0,0.1095162]
[1732039328800,0.0008554,92760.0,92759.0,0.1095162]
[1732039329067,0.0008552,92780.0,92759.0,0.33857875]
[1732039329310,0.0008552,92780.0,92779.0,0.117783]
[1732039329525,0.0008552,92780.0,92779.0,0.30834555]
[1732039330759,0.0008552,92780.0,92779.0,0.199283]
[1732039331459,0.0008552,92780.0,92779.0,0.30834555]
[1732039334021,0.0008552,92780.0,92779.0,0.32834555]
[1732039334295,0.0008551,92794.0,92793.0,0.24256879]
[1732039334526,0.0008551,92794.0,92793.0,0.42993134]
[1732039335006,0.04345434,92820.0,92819.0,0.107736]
[1732039335484,0.0008547,92833.0,92814.0,0.01]
[1732039335485,0.1008548,92832.0,92826.0,0.107727]
[1732039335921,0.1008548,92832.0,92828.0,0.107725]
[1732039336142,0.0008548,92832.0,92831.0,0.107722]
[1732039336610,0.0008548,92832.0,92828.0,0.107725]
[1732039336611,0.1085768,92832.0,92824.0,0.107729]
[1732039336869,0.04554607,92832.0,92815.0,0.10774]
[1732039337090,0.04554607,92832.0,92816.0,0.10774]
[1732039337091,0.107729,92826.0,92816.0,0.10774]
[1732039337335,0.04554607,92832.0,92815.0,0.01]
[1732039337578,0.107725,92829.0,92822.0,0.107732]
[1732039337789,0.04554607,92832.0,92811.0,0.01]
[1732039338010,0.107728,92826.0,92811.0,0.01]
[1732039338261,0.12480279,92827.0,92805.0,0.01]
[1732039338687,0.107737,92819.0,92812.0,0.107743]
[1732039338903,0.107733,92822.0,92813.0,0.107743]
[1732039339132,0.12480279,92827.0,92805.0,0.01]
[1732039339372,0.107737,92819.0,92812.0,0.107743]
[1732039339631,0.1,92826.0,92805.0,0.01]
[1732039339843,0.107743,92814.0,92808.0,0.107749]
[1732039340069,0.12480279,92820.0,92808.0,0.107748]
[1732039340288,0.107742,92814.0,92808.0,0.107748]
[1732039340732,0.215475,92818.0,92808.0,0.107748]
[1732039340983,0.10906255,92825.0,92808.0,0.107748]
[1732039340984,0.107737,92819.0,92814.0,0.107742]
[1732039341233,0.215469,92821.0,92809.0,0.107748]
[1732039341463,0.215459,92825.0,92811.0,0.01]
[1732039341674,0.0008548,92832.0,92818.0,0.107737]
[1732039341885,0.10773,92825.0,92818.0,0.107737]
[1732039342115,0.107733,92822.0,92816.0,0.107739]
[1732039342351,0.1,92828.0,92812.0,0.107744]
[1732039342609,0.107734,92821.0,92816.0,0.107739]
[1732039342833,0.107734,92821.0,92817.0,0.107738]
[1732039343054,0.58780255,92820.0,92783.0,0.107777]
[1732039343323,0.107796,92768.0,92761.0,0.0044612]
[1732039343540,0.1,92780.0,92766.0,0.0044612]
[1732039343759,0.215566,92779.0,92766.0,0.0044612]
[1732039344009,0.1,92780.0,92766.0,0.0044612]
[1732039344010,0.215568,92778.0,92766.0,0.0044612]
[1732039344226,0.12480279,92774.0,92766.0,0.0044612]
[1732039344466,0.12480279,92774.0,92759.0,0.0017102]
[1732039344467,0.107794,92769.0,92759.0,0.0017102]
[1732039344691,0.12480279,92763.0,92759.0,0.0017102]
[1732039344939,0.107805,92760.0,92759.0,0.0017102]
[1732039346381,0.1519196,92760.0,92759.0,0.0017102]
[1732039347564,0.107805,92760.0,92759.0,0.0017102]
[1732039349884,0.44595674,92762.0,92759.0,0.0017102]
[1732039350111,0.107804,92761.0,92759.0,0.0017102]
[1732039350351,0.107805,92760.0,92759.0,0.0017102]
[1732039350591,0.21686755,92760.0,92759.0,0.0017102]
[1732039350803,0.23035074,92762.0,92759.0,0.0017102]
[1732039351580,0.107805,92760.0,92759.0,0.0017102]
[1732039352897,0.40246087,92760.0,92759.0,0.0017102]
[1732039353115,0.40237571,92760.0,92759.0,0.0017102]
[1732039353344,0.29340932,92750.0,92749.0,0.001711]
[1732039353792,0.215617,92757.0,92738.0,0.10783]
[1732039353793,0.18559332,92739.0,92738.0,0.10783]
[1732039354013,0.18559332,92748.0,92747.0,0.10782]
[1732039354240,0.18559332,92758.0,92754.0,0.107812]
[1732039354488,0.18559332,92758.0,92733.0,0.10906255]
[1732039354489,0.18559332,92758.0,92757.0,0.107808]
[1732039355920,0.0883,92773.0,92769.0,0.107794]
[1732039356163,0.10906255,92772.0,92767.0,0.107796]
[1732039356861,0.10906255,92772.0,92768.0,0.107795]
[1732039357087,0.10906255,92772.0,92767.0,0.107795]
[1732039357334,0.10906255,92772.0,92747.0,0.0044612]
[1732039357335,0.10906255,92772.0,92762.0,0.107802]
[1732039357563,0.0055388,92793.0,92763.0,0.107801]
[1732039357775,0.0055388,92793.0,92784.0,0.107776]
[1732039357776,0.002,92791.0,92784.0,0.107776]
[1732039357994,0.21683255,92790.0,92784.0,0.107776]
[1732039358224,0.10906255,92790.0,92772.0,0.10779]
[1732039358444,0.10906255,92790.0,92763.0,0.0044612]
[1732039358445,0.29465587,92790.0,92773.0,0.107788]
[1732039358925,0.29465587,92790.0,92782.0,0.107778]
[1732039359154,0.107773,92788.0,92782.0,0.107778]
[1732039359391,0.10906255,92787.0,92782.0,0.107778]
[1732039359605,0.10906255,92787.0,92763.0,0.0044612]
[1732039359606,0.10906255,92787.0,92786.0,0.107774]
[1732039360716,0.15372039,92787.0,92786.0,0.107774]
[1732039361632,0.04465784,92787.0,92786.0,0.107774]
[1732039361845,0.01,92801.0,92786.0,0.107774]
[1732039361846,0.0486,92825.0,92797.0,0.1]
[1732039362180,0.0008548,92832.0,92831.0,0.107722]
[1732039363228,0.04405189,92832.0,92831.0,0.107722]
[1732039363453,0.0008548,92832.0,92831.0,0.107722]
[1732039363655,0.004306,92849.0,92838.0,0.107714]
[1732039363836,0.107707,92845.0,92836.0,0.107715]
[1732039364008,0.002,92848.0,92821.0,0.0044612]
[1732039364218,0.107721,92832.0,92821.0,0.0044612]
[1732039364421,0.215417,92844.0,92823.0,0.086184]
[1732039364422,0.107714,92838.0,92823.0,0.086184]
[1732039364625,0.107721,92832.0,92823.0,0.086184]
[1732039364831,0.215431,92837.0,92824.0,0.086184]
[1732039364832,0.215433,92836.0,92824.0,0.086184]
[1732039365037,0.215431,92837.0,92824.0,0.086184]
[1732039365242,0.215429,92838.0,92826.0,0.086182]
[1732039365413,0.107717,92836.0,92827.0,0.086181]
[1732039365613,0.107718,92835.0,92826.0,0.086182]
[1732039366237,0.215429,92838.0,92823.0,0.086185]
[1732039366238,0.107719,92834.0,92823.0,0.086185]
[1732039366664,0.107721,92833.0,92823.0,0.086185]
[1732039366866,0.107718,92835.0,92825.0,0.086183]
[1732039367069,0.107718,92835.0,92823.0,0.17237]
[1732039367272,0.215431,92837.0,92823.0,0.086185]
[1732039367491,0.107719,92834.0,92823.0,0.086185]
[1732039367888,0.107719,92834.0,92823.0,0.17237]
[1732039368322,0.107719,92834.0,92823.0,0.086185]
[1732039368543,0.215433,92836.0,92823.0,0.086185]
[1732039368766,0.215408,92847.0,92827.0,0.0044612]
[1732039368968,0.107712,92840.0,92830.0,0.086178]
[1732039369371,0.215418,92843.0,92830.0,0.086178]
[1732039369582,0.0008547,92834.0,92830.0,0.086178]
[1732039370218,0.21544,92833.0,92823.0,0.0923556]
[1732039370428,0.0008547,92834.0,92825.0,0.086182]
[1732039370634,0.1085737,92834.0,92826.0,0.086182]
[1732039370848,0.107721,92833.0,92825.0,0.086182]
[1732039371282,0.0008547,92834.0,92827.0,0.086181]
[1732039372092,0.0008547,92834.0,92825.0,0.086182]
[1732039372322,0.0008547,92834.0,92828.0,0.08618]
[1732039372551,0.0008547,92834.0,92833.0,0.086176]
[1732039372764,0.0008547,92834.0,92833.0,0.0906372]
[1732039372999,0.0008547,92834.0,92827.0,0.0799]
[1732039373000,0.0008547,92834.0,92832.0,0.0044612]
[1732039373201,0.0008547,92834.0,92833.0,0.086176]
[1732039374075,0.0008547,92834.0,92833.0,0.0906372]
[1732039374279,0.0008547,92834.0,92833.0,0.19969975]
[1732039374507,0.0008547,92834.0,92833.0,0.0906372]
[1732039375601,0.0008547,92834.0,92833.0,0.19969975]
[1732039375836,0.0008547,92834.0,92833.0,0.29969975]
[1732039376059,0.0008547,92834.0,92833.0,0.32764332]
[1732039376273,0.0008547,92834.0,92833.0,0.29969975]
[1732039376490,0.0008547,92834.0,92833.0,0.32764332]
[1732039376695,0.0008547,92834.0,92833.0,0.47060448]
[1732039377330,0.0008547,92834.0,92833.0,0.48060448]
[1732039377532,0.0008547,92834.0,92833.0,0.51360448]
[1732039377762,0.0008547,92834.0,92833.0,0.53939971]
[1732039378188,0.0008547,92834.0,92833.0,0.51639971]
[1732039378395,0.0008547,92834.0,92833.0,0.49060448]
[1732039378607,0.0008547,92834.0,92833.0,0.55120297]
[1732039378817,0.0008547,92834.0,92833.0,0.57733055]
[1732039379047,0.0008547,92834.0,92833.0,0.62003183]
[1732039379268,0.0008547,92834.0,92833.0,0.59390425]
[1732039379501,0.0008547,92834.0,92833.0,0.62003183]
[1732039379907,0.215363,92867.0,92857.0,0.086153]
[1732039380127,0.1,92891.0,92858.0,0.086152]
[1732039380128,0.215357,92869.0,92858.0,0.086152]
[1732039380364,0.107682,92866.0,92860.0,0.08615]
[1732039380580,0.107682,92866.0,92861.0,0.086149]
[1732039381710,0.107681,92867.0,92861.0,0.086149]
[1732039381918,0.107682,92866.0,92861.0,0.086149]
[1732039382127,0.21533,92881.0,92847.0,0.086163]
[1732039382357,0.10906255,92872.0,92849.0,0.0044612]
[1732039382587,0.32441355,92872.0,92849.0,0.0044612]
[1732039382806,0.10906255,92872.0,92849.0,0.0906212]
[1732039383023,0.107684,92865.0,92859.0,0.086151]
[1732039383253,0.215359,92868.0,92857.0,0.086153]
[1732039383472,0.107685,92863.0,92857.0,0.086153]
[1732039383688,0.323046,92866.0,92856.0,0.086154]
[1732039383919,0.215352,92871.0,92861.0,0.08615]
[1732039384119,0.21535,92872.0,92863.0,0.086147]
[1732039384336,0.215352,92871.0,92861.0,0.08615]
[1732039384549,0.0454681,92873.0,92853.0,0.0044612]
[1732039384765,0.10906255,92872.0,92847.0,0.086163]
[1732039384981,0.10906255,92872.0,92855.0,0.086155]
[1732039384982,0.215352,92871.0,92855.0,0.086155]
[1732039385227,0.215355,92870.0,92858.0,0.086152]
[1732039385427,0.107684,92864.0,92858.0,0.086152]
[1732039385640,0.10906255,92872.0,92849.0,0.0044612]
[1732039385855,0.107688,92861.0,92855.0,0.086155]
[1732039386099,0.107687,92862.0,92855.0,0.086155]
[1732039386307,0.107689,92860.0,92855.0,0.086155]
[1732039386528,0.107689,92860.0,92844.0,0.086165]
[1732039386529,0.107702,92848.0,92843.0,0.0906272]
[1732039386758,0.107696,92854.0,92849.0,0.086161]
[1732039386989,0.107697,92853.0,92848.0,0.086162]
[1732039387878,0.21539,92855.0,92848.0,0.086162]
[1732039388083,0.215379,92860.0,92843.0,0.086166]
[1732039388289,0.107704,92847.0,92843.0,0.0044612]
[1732039388732,0.1077,92851.0,92846.0,0.086164]
[1732039389251,0.1077,92851.0,92833.0,0.18510322]
[1732039389252,0.107714,92838.0,92836.0,0.0044612]
[1732039389488,0.107712,92840.0,92839.0,0.0044612]
[1732039389699,0.0466,92862.0,92827.0,0.0799]
[1732039389920,0.107715,92838.0,92835.0,0.0044612]
[1732039390130,0.107715,92838.0,92833.0,0.10906255]
[1732039390131,0.0786,92859.0,92840.0,0.0044612]
[1732039390613,0.215389,92855.0,92834.0,0.086175]
[1732039390822,0.107709,92843.0,92836.0,0.086173]
[1732039391027,0.10771,92842.0,92836.0,0.086173]
[1732039391241,0.107711,92841.0,92836.0,0.086173]
[1732039391460,0.107712,92840.0,92835.0,0.086174]
[1732039391659,0.107712,92840.0,92835.0,0.172348]
[1732039391874,0.215416,92844.0,92835.0,0.086174]
[1732039392086,0.107708,92843.0,92842.0,0.0017088]
[1732039393401,0.04341359,92853.0,92842.0,0.0017088]
[1732039393402,0.107704,92847.0,92842.0,0.0017088]
[1732039393630,0.04341359,92853.0,92842.0,0.0017088]
[1732039393839,0.0466,92862.0,92842.0,0.0017088]
[1732039394059,0.32443755,92861.0,92850.0,0.08616]
[1732039394298,0.10906255,92861.0,92842.0,0.0017088]
[1732039394522,0.107696,92854.0,92848.0,0.096931]
[1732039394741,0.10906255,92861.0,92848.0,0.096931]
[1732039394742,0.12638,92859.0,92848.0,0.096931]
[1732039394967,0.107697,92853.0,92848.0,0.096931]
[1732039395392,0.107699,92852.0,92846.0,0.096934]
[1732039395622,0.107699,92852.0,92843.0,0.096937]
[1732039395850,0.10769,92859.0,92853.0,0.096926]
[1732039396065,0.2162094,92870.0,92844.0,0.096936]
[1732039396066,0.107702,92849.0,92844.0,0.096936]
[1732039396289,0.10906255,92858.0,92842.0,0.00161603]
[1732039396511,0.107708,92843.0,92842.0,0.00161603]
[1732039397522,0.21677055,92843.0,92842.0,0.00161603]
[1732039398492,0.107708,92843.0,92842.0,0.00161603]
[1732039398703,0.215401,92850.0,92842.0,0.00161603]
[1732039398910,0.04345996,92847.0,92842.0,0.00161603]
[1732039399117,0.107703,92848.0,92843.0,0.096937]
[1732039399952,0.107703,92848.0,92844.0,0.096936]
[1732039400167,0.107703,92848.0,92843.0,0.096937]
[1732039400385,0.107708,92843.0,92842.0,0.00161603]
[1732039402728,0.01,92863.0,92842.0,0.00161603]
[1732039402729,0.123,92861.0,92842.0,0.00161603]
[1732039402928,0.107703,92848.0,92843.0,0.096937]
[1732039403153,0.107703,92848.0,92842.0,0.00161603]
[1732039403154,0.1,92859.0,92842.0,0.00161603]
[1732039403397,0.5939,92866.0,92842.0,0.00161603]
[1732039403606,0.107689,92860.0,92854.0,0.096926]
[1732039403829,0.107689,92860.0,92852.0,0.096928]
[1732039404045,0.107689,92860.0,92855.0,0.096924]
[1732039404274,0.10769,92859.0,92855.0,0.096924]
[1732039404492,0.315352,92871.0,92843.0,0.179536]
[1732039404493,0.15190209,92870.0,92865.0,0.107682]
[1732039404752,0.04422509,92870.0,92863.0,0.107684]
[1732039404967,0.15190309,92870.0,92863.0,0.107684]
[1732039405186,0.04422509,92870.0,92865.0,0.107682]
[1732039405406,0.107679,92869.0,92864.0,0.107683]
[1732039405614,0.215365,92866.0,92843.0,0.31622254]
[1732039405822,0.107687,92862.0,92858.0,0.107691]
[1732039406055,0.107685,92864.0,92859.0,0.107689]
[1732039406284,0.04422509,92870.0,92863.0,0.107684]
[1732039406505,0.04422509,92870.0,92858.0,0.10769]
[1732039406506,0.10768,92867.0,92862.0,0.107686]
[1732039406725,0.215358,92869.0,92862.0,0.107686]
[1732039406932,0.04422509,92870.0,92862.0,0.107686]
[1732039407153,0.10906255,92868.0,92843.0,0.0826]
[1732039407370,0.107697,92853.0,92843.0,0.0826]
[1732039407585,0.215387,92856.0,92849.0,0.1077]
[1732039407821,0.323041,92867.0,92843.0,0.107708]
[1732039408029,0.215368,92864.0,92850.0,0.107699]
[1732039408248,0.10906255,92867.0,92853.0,0.107696]
[1732039408460,0.10906255,92866.0,92842.0,0.00161603]
[1732039408912,0.215366,92865.0,92847.0,0.107703]
[1732039409120,0.25958109,92870.0,92847.0,0.107703]
[1732039409121,0.107699,92851.0,92847.0,0.107703]
[1732039409338,0.10906255,92864.0,92842.0,0.00161603]
[1732039409339,0.215403,92849.0,92842.0,0.00161603]
[1732039409567,0.0828,92862.0,92842.0,0.00161603]
[1732039409786,0.10906255,92861.0,92843.0,0.107708]
[1732039410046,0.107708,92843.0,92842.0,0.00161603]
[1732039410933,0.107708,92843.0,92823.0,0.0801094]
[1732039410934,0.18456255,92843.0,92823.0,0.0017094]
[1732039411154,0.10773,92824.0,92823.0,0.0017094]
[1732039411412,0.21679255,92824.0,92823.0,0.0017094]
[1732039411846,0.21679255,92824.0,92790.0,0.04341337]
[1732039411847,0.107769,92791.0,92790.0,0.04341337]
[1732039412292,0.107779,92782.0,92778.0,0.0825]
[1732039412521,0.10906255,92811.0,92778.0,0.0825]
[1732039412741,0.2155,92807.0,92778.0,0.190283]
[1732039412961,0.10906255,92806.0,92778.0,0.190283]
[1732039413198,0.107776,92785.0,92779.0,0.107782]
[1732039413423,0.5483,92809.0,92780.0,0.11906255]
[1732039413637,0.5483,92816.0,92793.0,0.107766]
[1732039413898,0.5483,92816.0,92794.0,0.12455999]
[1732039413899,0.107753,92805.0,92794.0,0.12455999]
[1732039414109,0.215482,92815.0,92798.0,0.10776]
[1732039414324,0.107757,92801.0,92795.0,0.107763]
[1732039414554,0.107747,92810.0,92804.0,0.107753]
[1732039414770,0.107747,92810.0,92805.0,0.107752]
[1732039415416,0.04315891,92816.0,92815.0,0.107741]
[1732039415646,0.1,92829.0,92815.0,0.107741]
[1732039415864,0.1,92829.0,92794.0,0.12455999]
[1732039415865,0.04282242,92823.0,92817.0,0.107737]
[1732039416076,0.215433,92836.0,92818.0,0.107736]
[1732039416292,0.10906255,92835.0,92808.0,0.0829]
[1732039416575,0.0008557,92823.0,92820.0,0.107734]
[1732039416797,0.0008557,92823.0,92822.0,0.107733]
[1732039417661,0.0008557,92823.0,92794.0,0.0929]
[1732039417895,0.107744,92812.0,92806.0,0.107751]
[1732039418112,0.12455999,92816.0,92787.0,0.107773]
[1732039418353,0.107749,92808.0,92787.0,0.107773]
[1732039418579,0.0768,92820.0,92788.0,0.10906255]
[1732039418810,0.5483,92824.0,92788.0,0.10906255]
[1732039419022,0.5483,92824.0,92789.0,0.01]
[1732039419242,0.5483,92824.0,92815.0,0.10774]
[1732039419446,0.107735,92820.0,92815.0,0.10774]
[1732039419684,0.107731,92824.0,92817.0,0.107737]
[1732039419896,0.25976762,92827.0,92802.0,0.107755]
[1732039419897,0.10775,92808.0,92802.0,0.107755]
[1732039420107,0.215487,92813.0,92805.0,0.107752]
[1732039420342,0.107747,92810.0,92805.0,0.107752]
[1732039420554,0.10906255,92820.0,92813.0,0.107743]
[1732039420771,0.12541569,92823.0,92807.0,0.107749]
[1732039420985,0.107753,92804.0,92796.0,0.107762]
[1732039421201,0.12455999,92816.0,92785.0,0.11906255]
[1732039421418,0.215498,92808.0,92781.0,0.01]
[1732039421654,0.215503,92806.0,92792.0,0.107767]
[1732039421868,0.215503,92806.0,92778.0,0.0017114]
[1732039421869,0.12455999,92809.0,92787.0,0.107772]
[1732039422075,0.2155,92807.0,92796.0,0.107763]
[1732039422297,0.12455999,92809.0,92795.0,0.107763]
[1732039422298,0.215503,92806.0,92795.0,0.107763]
[1732039422512,0.21681455,92806.0,92800.0,0.107758]
[1732039422723,0.5483,92814.0,92797.0,0.107761]